bitfinex/quotes_SOLUSD_20240824
["timestamp","ask_amount","ask_price","bid_price","bid_amount"]
[1724496603408,15.6781,158.8,158.75,9.80792032]
[1724496603593,15.6781,158.8,158.76,1.57655793]
[1724496603885,15.6781,158.8,158.77,1.57655793]
[1724496604090,15.6781,158.8,158.75,9.80792032]
[1724496604293,15.6781,158.8,158.76,1.57655097]
[1724496604492,15.6781,158.8,158.77,1.57655097]
[1724496604697,15.6781,158.8,158.75,9.80792032]
[1724496604904,15.6781,158.8,158.76,1.57655076]
[1724496605099,15.6781,158.8,158.77,1.57655076]
[1724496605405,15.6781,158.8,158.75,9.80792032]
[1724496605604,15.6781,158.8,158.76,1.57655913]
[1724496605909,15.6781,158.8,158.77,11.38447945]
[1724496606200,15.6781,158.8,158.78,1.57655913]
[1724496606414,15.6781,158.8,158.79,1.57655913]
[1724496606984,6.4126,158.86,158.79,11.38447945]
[1724496607201,6.4126,158.86,158.83,9.80792032]
[1724496607902,6.4126,158.86,158.84,1.57592568]
[1724496608211,6.4126,158.86,158.82,9.80792032]
[1724496608397,6.4126,158.86,158.83,1.57593787]
[1724496608594,6.4126,158.86,158.84,1.57593787]
[1724496608811,6.4126,158.86,158.78,6.54448389]
[1724496609026,6.4126,158.86,158.83,9.80792032]
[1724496609214,6.4126,158.86,158.84,1.57593999]
[1724496609393,6.4126,158.86,158.83,9.80792032]
[1724496609591,6.4126,158.86,158.84,1.57592364]
[1724496609807,6.4126,158.86,158.83,9.80792032]
[1724496609992,6.4126,158.86,158.84,1.57592452]
[1724496610291,6.4126,158.86,158.83,9.80792032]
[1724496610491,6.4126,158.86,158.84,1.57592452]
[1724496610701,6.4126,158.86,158.83,9.80792032]
[1724496611103,6.4126,158.86,158.84,1.57596991]
[1724496611314,6.4126,158.86,158.83,9.80792032]
[1724496617403,6.4126,158.86,158.81,9.80792032]
[1724496620029,6.4126,158.86,158.8,9.80792032]
[1724496623814,6.4126,158.86,158.78,6.41899389]
[1724496624125,6.4126,158.86,158.78,16.22691421]
[1724496624705,6.4126,158.86,158.8,9.80792032]
[1724496626549,15.6466,158.85,158.78,6.41899389]
[1724496626736,15.6466,158.85,158.78,16.22691421]
[1724496630933,15.6466,158.85,158.79,4.69211911]
[1724496632922,15.6466,158.85,158.79,4.69397723]
[1724496635417,15.6466,158.85,158.8,9.80792032]
[1724496635613,15.6466,158.85,158.8,14.50189755]
[1724496635925,15.6466,158.85,158.81,4.69397723]
[1724496636132,15.6466,158.85,158.82,9.80792032]
[1724496637247,15.6466,158.85,158.81,9.80792032]
[1724496641837,15.6466,158.85,158.78,16.22691421]
[1724496642816,15.6466,158.85,158.78,6.41899389]
[1724496643145,15.6466,158.85,158.78,16.22691421]
[1724496646714,15.6466,158.85,158.78,6.41899389]
[1724496646916,15.6466,158.85,158.78,16.22691421]
[1724496647326,15.6466,158.85,158.78,6.41899389]
[1724496656744,15.6466,158.85,158.79,9.80792032]
[1724496661448,15.6466,158.85,158.78,6.41899389]
[1724496669362,15.6466,158.85,158.73,8.14407733]
[1724496669566,15.6466,158.85,158.77,9.80792032]
[1724496669762,15.6466,158.85,158.77,16.22691421]
[1724496669972,15.6466,158.85,158.78,0.12549]
[1724496671567,15.6466,158.85,158.79,1.57602649]
[1724496671849,15.6466,158.85,158.8,1.57602649]
[1724496672055,15.6466,158.85,158.81,1.57602649]
[1724496672277,15.6466,158.85,158.82,1.57602649]
[1724496672481,15.6466,158.85,158.83,1.57602649]
[1724496672682,15.6466,158.85,158.84,1.57602649]
[1724496674456,15.6466,158.85,158.84,5.17106614]
[1724496676280,15.6466,158.85,158.77,16.22691421]
[1724496676461,15.6466,158.85,158.84,5.17087816]
[1724496677056,15.6466,158.85,158.84,5.17089744]
[1724496679484,15.6466,158.85,158.84,3.59489406]
[1724496679684,15.6466,158.85,158.84,5.17091943]
[1724496682665,15.6466,158.85,158.77,16.22691421]
[1724496682888,15.6466,158.85,158.84,5.17073621]
[1724496683081,15.6466,158.85,158.84,5.17073608]
[1724496686066,15.6466,158.85,158.84,1.57605787]
[1724496686389,15.6466,158.85,158.84,5.17098963]
[1724496689271,15.6466,158.85,158.84,1.57611685]
[1724496689475,15.6466,158.85,158.84,5.17161754]
[1724496695513,15.6466,158.85,158.78,9.80792032]
[1724496695798,15.6466,158.85,158.84,1.57605842]
[1724496696003,15.6466,158.85,158.84,5.17107019]
[1724496696875,15.6466,158.85,158.84,9.86196764]
[1724496698787,15.6466,158.85,158.84,9.84788687]
[1724496699886,15.6466,158.85,158.84,5.16493767]
[1724496702011,15.6466,158.85,158.84,5.15782105]
[1724496707594,6.4126,158.86,158.84,5.15782105]
[1724496707912,6.4126,158.86,158.85,1.57605774]
[1724496714725,6.4126,158.86,158.77,6.41899389]
[1724496714901,6.4126,158.86,158.85,1.57609994]
[1724496715221,6.4126,158.86,158.78,9.80792032]
[1724496715419,6.4126,158.86,158.85,1.57609979]
[1724496715923,87.42658,158.86,158.79,3.58094035]
[1724496716124,65.25098,158.85,158.8,5.15727051]
[1724496716424,6.2963,158.83,158.81,1.57633016]
[1724496716742,6.2963,158.83,158.82,1.57633016]
[1724496716902,26.2963,158.83,158.82,1.57633016]
[1724496717998,26.2963,158.83,158.82,1.57639868]
[1724496718221,71.42179,158.83,158.82,1.57639868]
[1724496720711,6.2964,158.82,158.73,24.37099154]
[1724496720897,51.2964,158.82,158.73,24.37099154]
[1724496721092,65.12549,158.83,158.75,9.80792032]
[1724496721093,20.0,158.83,158.75,9.80792032]
[1724496721898,6.2959,158.84,158.75,9.80792032]
[1724496722806,6.2953,158.85,158.78,9.80792032]
[1724496723016,20.0,158.84,158.78,9.80792032]
[1724496724029,20.0,158.85,158.78,9.80792032]
[1724496728427,20.0,158.85,158.76,9.80792032]
[1724496728637,20.0,158.85,158.75,9.80792032]
[1724496729434,54.93341032,158.84,158.75,9.80792032]
[1724496730111,9.80792032,158.84,158.75,9.80792032]
[1724496730309,6.2952,158.85,158.75,9.80792032]
[1724496730533,6.2952,158.85,158.76,0.12549]
[1724496730918,6.2952,158.85,158.75,9.80792032]
[1724496731652,6.2957,158.84,158.74,0.12549]
[1724496731834,6.2957,158.84,158.75,9.80792032]
[1724496732613,6.2957,158.84,158.76,1.25957655]
[1724496734038,6.2957,158.84,158.75,9.80792032]
[1724496735015,6.2961,158.83,158.73,14.56307122]
[1724496735211,6.2961,158.83,158.74,9.80792032]
[1724496736119,45.0,158.84,158.74,9.80792032]
[1724496736120,51.2957,158.84,158.74,9.80792032]
[1724496736516,51.2957,158.84,158.75,1.25963004]
[1724496737123,51.2957,158.84,158.74,9.80792032]
[1724496737324,51.2957,158.84,158.73,6.41899389]
[1724496737624,51.2957,158.84,158.75,9.80792032]
[1724496739738,51.2957,158.84,158.73,6.41899389]
[1724496739915,61.10362032,158.84,158.74,9.80792032]
[1724496740607,22.1756,158.86,158.78,9.80792032]
[1724496740808,15.763,158.86,158.8,9.80792032]
[1724496741016,33.04432032,158.9,158.8,9.80792032]
[1724496741311,6.2945,158.87,158.79,11.06727303]
[1724496741509,33.04432032,158.9,158.79,9.80792032]
[1724496741735,29.53,158.9,158.81,9.80792032]
[1724496743133,13.06728907,158.94,158.83,9.80792032]
[1724496743336,20.0,158.89,158.85,9.80792032]
[1724496743834,16.31202032,158.94,158.85,9.80792032]
[1724496743835,20.0,158.93,158.85,9.80792032]
[1724496744039,16.31202032,158.94,158.85,9.80792032]
[1724496744833,6.2925,158.92,158.85,9.80792032]
[1724496745534,6.2925,158.92,158.83,16.0157]
[1724496745535,6.2932,158.91,158.83,25.82362032]
[1724496745717,9.80792032,158.92,158.83,16.0157]
[1724496745718,6.2936,158.9,158.83,16.0157]
[1724496746032,9.80792032,158.88,158.79,25.82362032]
[1724496746216,9.80792032,158.88,158.79,16.0157]
[1724496746410,9.80792032,158.88,158.74,8.14407733]
[1724496746411,9.80792032,158.86,158.75,16.0157]
[1724496746614,0.12549,158.85,158.76,9.80792032]
[1724496746836,9.80792032,158.84,158.76,9.80792032]
[1724496747420,16.10352032,158.84,158.76,11.06751987]
[1724496747819,16.10352032,158.84,158.76,9.80792032]
[1724496749836,0.12549,158.85,158.75,16.0157]
[1724496750016,51.62959,158.87,158.75,16.0157]
[1724496750017,6.2964,158.82,158.75,16.0157]
[1724496750430,39.83471322,160.51,158.81,16.0157]
[1724496750431,6.294,158.89,158.81,16.0157]
[1724496750627,16.31202032,158.92,158.82,9.80792032]
[1724496750928,6.2929,158.91,158.82,16.39072032]
[1724496751130,12.7965,158.92,158.84,9.80792032]
[1724496752532,20.0,158.91,158.84,9.80792032]
[1724496753154,15.7281,158.96,158.82,6.5828]
[1724496753155,22.1543,158.97,158.86,9.80792032]
[1724496753458,31.96222032,158.97,158.86,9.80792032]
[1724496753616,22.1543,158.97,158.88,9.80792032]
[1724496753817,15.6502,158.97,158.88,25.82362032]
[1724496754048,21.941,158.97,158.88,25.82362032]
[1724496754554,6.291,158.96,158.88,25.82362032]
[1724496755030,6.5041,159.01,158.9,9.80792032]
[1724496755237,16.31202032,159.01,158.9,9.80792032]
[1724496756127,9.80792032,158.99,158.89,6.5828]
[1724496756728,65.25098,158.98,158.89,6.5828]
[1724496757328,15.7171,159.07,158.9,9.80792032]
[1724496757528,9.80792032,159.01,158.9,9.80792032]
[1724496757750,15.7171,159.07,158.9,9.80792032]
[1724496757930,9.80792032,159.02,158.9,9.80792032]
[1724496758456,47.136693,159.0,158.9,9.80792032]
[1724496758832,6.2897,158.99,158.91,16.0157]
[1724496759037,40.847293,159.0,158.93,9.80792032]
[1724496759442,40.847293,159.0,158.91,16.0157]
[1724496759443,6.2913,158.95,158.91,16.0157]
[1724496759651,40.847293,159.0,158.91,16.0157]
[1724496759842,40.847293,159.0,158.91,25.82362032]
[1724496760554,40.847293,159.0,158.93,9.80792032]
[1724496762751,45.0,158.99,158.91,16.0157]
[1724496762942,54.80792032,158.99,158.91,16.0157]
[1724496763350,51.2897,158.99,158.91,16.0157]
[1724496763856,40.847293,159.0,158.91,16.0157]
[1724496766759,9.80792032,158.98,158.91,16.0157]
[1724496767344,61.22341032,158.99,158.91,16.0157]
[1724496768065,6.2902,158.98,158.91,16.0157]
[1724496768265,54.93341032,158.99,158.91,16.0157]
[1724496768464,20.0,158.98,158.91,16.0157]
[1724496772242,6.2913,158.95,158.91,16.0157]
[1724496772447,45.0,158.97,158.91,16.0157]
[1724496772678,0.12549,158.96,158.91,16.0157]
[1724496774682,0.12549,158.96,158.89,6.5828]
[1724496775685,0.25098,158.96,158.87,16.6641]
[1724496775980,6.2917,158.94,158.87,16.6641]
[1724496777262,9.80792032,158.95,158.87,16.6641]
[1724496777567,65.25098,158.94,158.87,16.6641]
[1724496778272,71.54268,158.94,158.87,16.6641]
[1724496779461,6.2921,158.93,158.87,16.6641]
[1724496781087,6.2929,158.91,158.83,26.47202032]
[1724496781267,6.2933,158.9,158.83,26.47202032]
[1724496782789,6.2933,158.9,158.83,16.6641]
[1724496783086,45.12549,158.89,158.83,16.6641]
[1724496783276,6.2933,158.9,158.83,16.6641]
[1724496783455,6.2933,158.9,158.83,26.47202032]
[1724496784182,6.2929,158.91,158.83,26.47202032]
[1724496784380,45.12549,158.9,158.83,26.47202032]
[1724496784977,6.41799,158.92,158.83,26.47202032]
[1724496785182,20.0,158.91,158.83,26.47202032]
[1724496785587,6.2924,158.93,158.83,26.47202032]
[1724496785763,65.12549,158.92,158.83,26.47202032]
[1724496786085,6.41849,158.91,158.83,16.6641]
[1724496786262,45.0,158.9,158.83,16.6641]
[1724496787481,6.2941,158.88,158.83,16.6641]
[1724496787787,45.0,158.9,158.83,16.6641]
[1724496787989,0.25098,158.89,158.83,16.6641]
[1724496788283,0.12549,158.89,158.83,16.6641]
[1724496788486,45.12549,158.89,158.83,16.6641]
[1724496788856,6.2944,158.87,158.78,15.2499]
[1724496789056,45.12549,158.89,158.78,15.2499]
[1724496789057,26.2949,158.86,158.79,11.38371237]
[1724496789259,26.2949,158.86,158.79,1.57579205]
[1724496789677,6.2952,158.85,158.79,1.57579205]
[1724496790076,6.2952,158.85,158.78,25.05782032]
[1724496790276,6.2956,158.84,158.78,15.2499]
[1724496790979,20.12549,158.86,158.78,15.2499]
[1724496790980,6.2968,158.82,158.78,15.2499]
[1724496791160,9.80792032,158.83,158.78,15.2499]
[1724496791486,45.0,158.82,158.78,15.2499]
[1724496791662,6.42149,158.84,158.78,15.2499]
[1724496791861,65.12549,158.83,158.78,15.2499]
[1724496792058,45.12549,158.83,158.78,15.2499]
[1724496792879,51.42169,158.83,158.78,15.2499]
[1724496793691,45.12549,158.83,158.78,15.2499]
[1724496793991,0.12549,158.83,158.78,15.2499]
[1724496794182,20.12549,158.83,158.78,15.2499]
[1724496794882,0.12549,158.83,158.78,15.2499]
[1724496795276,0.12549,158.83,158.76,6.204]
[1724496795277,20.12549,158.83,158.76,6.204]
[1724496795479,45.0,158.82,158.76,6.204]
[1724496796373,51.2966,158.82,158.76,6.204]
[1724496796675,0.25098,158.81,158.74,25.05782032]
[1724496797068,6.54788,158.81,158.74,25.05782032]
[1724496797699,0.25098,158.81,158.74,25.05782032]
[1724496798976,9.80792032,158.8,158.72,6.204]
[1724496799199,45.25098,158.79,158.72,6.204]
[1724496800271,51.54858,158.79,158.72,6.204]
[1724496800880,45.25098,158.79,158.7,15.2499]
[1724496801083,6.2985,158.77,158.7,15.2499]
[1724496801389,45.0,158.76,158.7,15.2499]
[1724496805686,51.2989,158.76,158.7,15.2499]
[1724496805889,6.55018,158.75,158.7,15.2499]
[1724496806203,45.0,158.74,158.7,15.2499]
[1724496808507,45.0,158.74,158.67,16.01192032]
[1724496809094,45.0,158.74,158.67,6.204]
[1724496810811,45.0,158.74,158.66,26.04922032]
[1724496810812,0.25098,158.73,158.66,16.2413]
[1724496811012,0.25098,158.73,158.63,6.3016]
[1724496811314,0.25098,158.73,158.63,16.10952032]
[1724496811315,10.05890032,158.73,158.63,16.10952032]
[1724496811513,10.05890032,158.73,158.65,9.80792032]
[1724496811514,0.25098,158.73,158.65,9.80792032]
[1724496812312,6.55098,158.73,158.65,9.80792032]
[1724496812488,45.0,158.72,158.65,9.80792032]
[1724496813017,45.25098,158.73,158.65,9.80792032]
[1724496813386,45.0,158.73,158.65,9.80792032]
[1724496814986,45.0,158.73,158.66,9.80792032]
[1724496815815,6.5919,158.71,158.58,15.1811]
[1724496815995,65.25098,158.7,158.6,9.80792032]
[1724496816309,65.25098,158.7,158.58,15.1811]
[1724496816310,75.05890032,158.7,158.58,15.1811]
[1724496816508,61.36040032,158.7,158.59,9.80792032]
[1724496817016,6.3028,158.66,158.58,15.1811]
[1724496817193,9.80792032,158.64,158.55,0.8537466]
[1724496817396,45.12549,158.63,158.55,0.8537466]
[1724496817716,20.12549,158.62,158.55,0.8537466]
[1724496818288,26.42989,158.62,158.55,0.8537466]
[1724496818506,51.43029,158.61,158.55,0.8537466]
[1724496819384,6.3055,158.59,158.55,0.8537466]
[1724496819584,6.55698,158.58,158.55,0.8537466]
[1724496819787,6.55698,158.58,158.41,6.56915739]
[1724496819788,6.5919,158.56,158.41,6.56915739]
[1724496819998,9.80792032,158.52,158.43,15.1811]
[1724496820214,6.3092,158.5,158.41,9.80792032]
[1724496820413,6.56048,158.49,158.38,39.69033859]
[1724496820611,45.12549,158.48,158.38,39.69033859]
[1724496821106,0.12549,158.47,158.38,39.69033859]
[1724496822027,0.12549,158.47,158.38,15.1811]
[1724496822402,6.43579,158.47,158.38,15.1811]
[1724496822600,45.12549,158.46,158.36,24.50923859]
[1724496823209,45.0,158.46,158.38,24.50923859]
[1724496823526,45.0,158.46,158.34,24.50923859]
[1724496823717,20.25098,158.45,158.34,24.50923859]
[1724496823899,45.0,158.44,158.34,24.50923859]
[1724496824525,45.0,158.44,158.36,24.50923859]
[1724496824698,0.25098,158.45,158.36,24.50923859]
[1724496824901,45.25098,158.45,158.36,24.50923859]
[1724496825094,45.0,158.46,158.38,24.50923859]
[1724496825295,45.0,158.46,158.37,24.50923859]
[1724496825296,51.3107,158.46,158.37,24.50923859]
[1724496825523,45.0,158.46,158.37,24.50923859]
[1724496825995,45.0,158.46,158.33,6.3348]
[1724496826318,6.56228,158.45,158.34,24.50923859]
[1724496826525,45.0,158.44,158.34,24.50923859]
[1724496826746,0.25098,158.43,158.34,24.50923859]
[1724496827320,45.0,158.44,158.36,24.50923859]
[1724496827523,12.9024,158.47,158.36,24.50923859]
[1724496827709,71.56168,158.46,158.36,24.50923859]
[1724496828298,65.25098,158.46,158.44,10.0]
[1724496829108,6.3111,158.45,158.44,10.0]
[1724496829417,51.56208,158.45,158.44,10.0]
[1724496829812,65.25098,158.45,158.44,10.0]
[1724496831924,45.25098,158.45,158.44,10.0]
[1724496832316,65.25098,158.45,158.44,10.0]
[1724496833022,20.0,158.45,158.44,10.0]
[1724496833399,6.637,158.51,158.44,10.0]
[1724496834239,15.3959,158.54,158.44,10.0]
[1724496835725,20.0,158.53,158.44,10.0]
[1724496835914,44.50923859,158.53,158.44,10.0]
[1724496836110,15.3959,158.54,158.44,10.0]
[1724496838128,0.25098,158.53,158.44,10.0]
[1724496838519,0.25098,158.53,158.44,34.50923859]
[1724496838717,45.25098,158.54,158.44,10.0]
[1724496839224,6.637,158.59,158.49,24.50923859]
[1724496839427,15.3959,158.62,158.51,24.50923859]
[1724496839631,21.7004,158.62,158.51,24.50923859]
[1724496839815,6.3047,158.61,158.51,24.50923859]
[1724496840332,12.9411,158.63,158.51,24.50923859]
[1724496840833,20.0,158.62,158.5,15.5782]
[1724496841029,6.637,158.63,158.5,40.08743859]
[1724496841755,31.14623859,158.63,158.5,40.08743859]
[1724496842215,65.25098,158.62,158.5,40.08743859]
[1724496842543,6.3052,158.6,158.5,40.08743859]
[1724496842721,65.25098,158.59,158.5,40.08743859]
[1724496843234,71.55668,158.59,158.5,40.08743859]
[1724496843416,71.55668,158.59,158.5,15.5782]
[1724496843729,6.3062,158.58,158.5,15.5782]
[1724496843939,45.25098,158.57,158.45,15.5663]
[1724496844251,89.76021859,158.59,158.45,15.5663]
[1724496844252,65.25098,158.56,158.45,15.5663]
[1724496845825,45.0,158.53,158.45,15.5663]
[1724496846015,20.25098,158.52,158.45,15.5663]
[1724496847429,20.25098,158.52,158.44,16.269]
[1724496847637,20.25098,158.52,158.44,10.0]
[1724496847833,45.0,158.51,158.44,10.0]
[1724496848039,0.25098,158.5,158.44,10.0]
[1724496848846,6.0532,158.54,158.44,10.0]
[1724496849057,45.71183859,158.58,158.45,1.26203874]
[1724496849230,6.3079,158.53,158.44,34.50923859]
[1724496849441,20.0,158.57,158.44,34.50923859]
[1724496850124,6.3076,158.54,158.44,34.50923859]
[1724496850324,6.3071,158.56,158.44,34.50923859]
[1724496850550,26.3071,158.55,158.44,34.50923859]
[1724496850746,20.0,158.54,158.44,34.50923859]
[1724496851727,21.2026,158.62,158.48,24.50923859]
[1724496851927,24.50923859,158.6,158.49,15.5663]
[1724496852733,24.50923859,158.6,158.5,0.03167383]
[1724496852734,30.81443859,158.6,158.5,0.03167383]
[1724496853145,30.81443859,158.6,158.49,15.5663]
[1724496853357,30.81443859,158.6,158.51,0.03167383]
[1724496853625,30.81443859,158.6,158.5,0.03167383]
[1724496853853,20.0,158.59,158.5,0.03167383]
[1724496854258,12.3576,158.62,158.5,0.03167383]
[1724496854436,20.0,158.61,158.5,0.03167383]
[1724496854629,26.3048,158.61,158.5,0.03167383]
[1724496854840,6.3043,158.62,158.5,0.03167383]
[1724496855047,22.0709,158.67,158.52,6.1502]
[1724496855233,6.3039,158.63,158.53,24.63472859]
[1724496855629,6.3036,158.64,158.53,24.63472859]
[1724496856356,20.0,158.63,158.53,24.63472859]
[1724496856728,26.304,158.63,158.53,24.63472859]
[1724496857233,26.304,158.63,158.52,6.1502]
[1724496857234,6.3044,158.62,158.52,6.1502]
[1724496857426,20.0,158.61,158.52,6.1502]
[1724496857626,26.3048,158.61,158.52,6.1502]
[1724496857822,45.0,158.6,158.52,6.1502]
[1724496858248,44.50923859,158.59,158.49,15.5663]
[1724496858452,6.3072,158.55,158.5,0.03167383]
[1724496858661,45.25098,158.58,158.5,0.03167383]
[1724496858662,0.25098,158.58,158.5,0.03167383]
[1724496858837,51.55728,158.58,158.5,0.03167383]
[1724496859041,20.0,158.57,158.5,0.03167383]
[1724496861557,20.0,158.57,158.49,15.5663]
[1724496861558,6.3074,158.55,158.49,15.5663]
[1724496861764,45.0,158.54,158.49,15.5663]
[1724496861943,45.0,158.54,158.46,16.4522]
[1724496862143,20.0,158.53,158.49,0.03167383]
[1724496862360,6.3084,158.52,158.46,16.4522]
[1724496862846,20.0,158.53,158.46,16.4522]
[1724496862847,6.3088,158.51,158.46,16.4522]
[1724496863043,6.3088,158.51,158.45,6.1502]
[1724496863270,6.3091,158.5,158.45,6.1502]
[1724496863449,6.3096,158.49,158.45,6.1502]
[1724496863650,6.3092,158.5,158.42,15.9193]
[1724496865767,6.43429,158.51,158.42,15.9193]
[1724496865969,45.12549,158.5,158.42,15.9193]
[1724496866476,45.0,158.5,158.42,15.9193]
[1724496866782,0.25098,158.49,158.42,15.9193]
[1724496866935,0.12549,158.5,158.42,15.9193]
[1724496867140,20.25098,158.5,158.42,15.9193]
[1724496867365,6.3099,158.48,158.42,15.9193]
[1724496867967,45.0,158.47,158.42,15.9193]
[1724496868171,45.0,158.48,158.42,15.9193]
[1724496868757,26.56028,158.5,158.42,15.9193]
[1724496869672,20.0,158.5,158.42,15.9193]
[1724496869867,20.0,158.51,158.42,15.9193]
[1724496871365,61.61734344,158.57,158.45,1.2621304]
[1724496871567,61.61734344,158.57,158.43,30.60884344]
[1724496871747,6.3068,158.56,158.46,30.60884344]
[1724496872666,6.3071,158.55,158.46,30.60884344]
[1724496873261,6.3068,158.56,158.46,30.60884344]
[1724496873573,45.12549,158.55,158.46,30.60884344]
[1724496873971,6.3064,158.57,158.47,6.2598]
[1724496875155,20.12549,158.56,158.47,6.2598]
[1724496875352,65.12549,158.56,158.47,6.2598]
[1724496876886,71.43229,158.56,158.47,6.2598]
[1724496879294,65.12549,158.56,158.47,6.2598]
[1724496879483,6.3071,158.55,158.47,6.2598]
[1724496880388,65.0,158.56,158.47,6.2598]
[1724496880565,20.0,158.56,158.48,15.9193]
[1724496880767,0.12549,158.57,158.48,15.9193]
[1724496880967,45.25098,158.58,158.48,15.9193]
[1724496881175,20.0,158.57,158.48,15.9193]
[1724496881688,26.3064,158.57,158.48,40.40552824]
[1724496882690,22.2949,158.63,158.5,24.48622824]
[1724496883259,6.3056,158.59,158.5,24.48622824]
[1724496883969,20.0,158.58,158.5,24.48622824]
[1724496884160,6.3056,158.59,158.5,24.48622824]
[1724496884361,20.0,158.58,158.5,24.48622824]
[1724496884863,6.3056,158.59,158.5,24.48622824]
[1724496885093,65.0,158.58,158.5,24.48622824]
[1724496886767,71.3061,158.58,158.48,40.40552824]
[1724496893394,71.3061,158.58,158.48,15.9193]
[1724496893595,6.43199,158.57,158.48,15.9193]
[1724496894998,0.12549,158.57,158.48,15.9193]
[1724496895209,6.3071,158.55,158.48,15.9193]
[1724496895568,6.43229,158.56,158.48,15.9193]
[1724496895897,45.12549,158.55,158.48,15.9193]
[1724496896978,6.3076,158.54,158.48,15.9193]
[1724496897776,51.43269,158.55,158.48,15.9193]
[1724496898801,6.3075,158.54,158.48,15.9193]
[1724496899409,65.0,158.53,158.48,15.9193]
[1724496899569,6.3088,158.51,158.48,15.9193]
[1724496900076,6.3083,158.52,158.48,15.9193]
[1724496900298,20.0,158.51,158.48,15.9193]
[1724496901891,20.0,158.54,158.48,15.9193]
[1724496902100,6.3071,158.55,158.48,15.9193]
[1724496902303,6.3079,158.53,158.48,15.9193]
[1724496902484,6.3088,158.51,158.48,15.9193]
[1724496902694,20.0,158.56,158.48,15.9193]
[1724496902875,6.3084,158.52,158.48,15.9193]
[1724496903678,6.308,158.53,158.48,15.9193]
[1724496903913,45.12549,158.52,158.48,15.9193]
[1724496905981,51.43389,158.52,158.48,15.9193]
[1724496907715,45.12549,158.52,158.48,15.9193]
[1724496908580,6.43309,158.54,158.48,15.9193]
[1724496908783,20.0,158.53,158.48,15.9193]
[1724496909291,0.12549,158.54,158.48,15.9193]
[1724496909504,65.25098,158.54,158.48,15.9193]
[1724496909804,9.79718458,158.57,158.48,15.9193]
[1724496909805,6.3066,158.57,158.49,9.79718458]
[1724496909999,20.0,158.56,158.49,9.79718458]
[1724496910480,20.0,158.56,158.48,40.40168109]
[1724496910880,6.3059,158.58,158.48,40.40168109]
[1724496911180,6.3057,158.59,158.5,30.92578109]
[1724496911577,6.5342,158.63,158.52,24.48238109]
[1724496911821,6.3047,158.61,158.54,24.48238109]
[1724496912214,30.9827,158.65,158.52,24.48238109]
[1724496912387,55.46508109,158.65,158.52,24.48238109]
[1724496912710,6.3054,158.6,158.51,16.5292]
[1724496913015,6.3055,158.59,158.51,16.5292]
[1724496913699,45.25098,158.58,158.51,16.5292]
[1724496915314,45.0,158.58,158.51,16.5292]
[1724496915516,45.0,158.59,158.51,41.01158109]
[1724496915818,6.3064,158.57,158.51,16.5292]
[1724496916002,45.25098,158.56,158.51,16.5292]
[1724496916205,45.12549,158.56,158.51,16.5292]
[1724496916405,0.12549,158.56,158.51,16.5292]
[1724496917921,6.55808,158.56,158.51,16.5292]
[1724496918306,45.0,158.55,158.51,16.5292]
[1724496919330,45.0,158.55,158.47,16.5292]
[1724496921021,51.3071,158.55,158.47,16.5292]
[1724496921199,20.0,158.54,158.47,16.5292]
[1724496921399,45.25098,158.53,158.48,1.57948818]
[1724496921601,45.25098,158.53,158.49,1.57948818]
[1724496921791,45.25098,158.53,158.47,16.5292]
[1724496921995,45.25098,158.53,158.48,1.57956776]
[1724496922194,51.55898,158.53,158.49,1.57956776]
[1724496922421,51.55898,158.53,158.47,16.5292]
[1724496922620,51.55898,158.53,158.48,1.57959177]
[1724496922821,51.55898,158.53,158.49,1.57959177]
[1724496923123,51.55898,158.53,158.47,16.5292]
[1724496923302,45.25098,158.53,158.48,1.57960839]
[1724496923638,45.25098,158.53,158.49,1.57960839]
[1724496923927,51.55908,158.53,158.47,16.5292]
[1724496924219,51.55908,158.53,158.48,1.57962539]
[1724496924400,51.55908,158.53,158.47,16.5292]
[1724496924598,51.55908,158.53,158.48,1.57962521]